lending/lending_fUSD_20240911
["ID","MTS","AMOUNT","RATE_DAILY","PERIOD"]
[337744866,1726028473882,425.2564591,0.00028,120]
[337744867,1726028570107,500.0,0.00028,120]
[337744868,1726028570481,262.61863531,0.00028,120]
[337744869,1726028622092,354.77,0.00011687,2]
[337744870,1726028681193,413.80300669,0.00028,120]
[337744871,1726028792264,500.0,0.00028,120]
[337744872,1726028792568,227.0,0.00028,120]
[337744873,1726028821811,31272.2823653,0.0001218,2]
[337744891,1726029032053,-150.0,0.00012179,2]
[337744892,1726029032062,-3250.0142861,0.0001218,2]
[337744893,1726029037966,-187606.90341724,0.0001218,2]
[337744895,1726029037975,-263.632,0.0001274,2]
[337744897,1726029037984,-339.36122781,0.000129,2]
[337744899,1726029037993,-504.08023296,0.00012973,2]
[337744900,1726029038002,-500.0,0.00012973,2]
[337744901,1726029038012,-151.7,0.0001299,2]
[337744902,1726029038021,-465.26077056,0.00012999,2]
[337744903,1726029038031,-500.0,0.00012999,2]
[337744904,1726029038042,-500.0,0.00012999,2]
[337744905,1726029038051,-334.87216625,0.00012999,2]
[337744906,1726029038062,-1901.03548509,0.00013,2]
[337744907,1726029038079,-54162.65917627,0.00013,2]
[337744908,1726029038092,-4199.0699999,0.00013,2]
[337744909,1726029038247,-567272.16672284,0.00013,2]
[337744910,1726029038258,-93083.36506274,0.00013,2]
[337744911,1726029038268,-301.19123069,0.00013,2]
[337744912,1726029038278,-188.14,0.00013021,2]
[337744913,1726029038288,-492.8,0.00013028,2]
[337744914,1726029038299,-250.0,0.0001304,2]
[337744916,1726029038309,-223.0,0.00013263,2]
[337744918,1726029038318,-5337.05765214,0.00013388,2]
[337744920,1726029038327,-150.0,0.00013488,2]
[337744922,1726029038337,-5337.05765209,0.00013556,2]
[337744924,1726029038347,-200.0,0.00013562,2]
[337744926,1726029038357,-23890.0,0.00013563,2]
[337744928,1726029038367,-166.47,0.00013565,2]
[337744930,1726029038376,-507.2,0.00013586,2]
[337744932,1726029038387,-186.78,0.00013586,2]
[337744934,1726029038398,-250.0,0.00013592,2]
[337744936,1726029038410,-250.0,0.00013634,2]
[337744938,1726029038420,-499.99,0.00013666,2]
[337744940,1726029038430,-167.08,0.00013699,2]
[337744941,1726029038439,-200.0,0.00013699,2]
[337744944,1726029038449,-152.21,0.00013699,2]
[337744945,1726029038458,-2751.0,0.00013699,2]
[337744947,1726029038467,-1250.0,0.000137,2]
[337744949,1726029038476,-5337.05765209,0.00013724,2]
[337744951,1726029038485,-49990.0449408,0.000138,3]
[337744953,1726029038494,-188.12,0.00013823,2]
[337744955,1726029038503,-150.0,0.00013878,2]
[337744957,1726029038512,-1261.0,0.00013878,2]
[337744959,1726029038521,-931.0,0.00013878,2]
[337744961,1726029038530,-5337.05765209,0.00013892,2]
[337744963,1726029038539,-179.94,0.00013908,2]
[337744965,1726029038548,-354.77,0.00013951,2]
[337744967,1726029038557,-2000.0,0.00014,2]
[337744969,1726029038566,-5337.05765209,0.0001406,2]
[337744970,1726029038576,-5337.05765209,0.00014228,2]
[337744973,1726029038586,-500.0,0.00014342,2]
[337744975,1726029038595,-5337.05765209,0.00014396,2]
[337744977,1726029038605,-150.16,0.00014466,2]
[337744979,1726029038616,-5337.05765209,0.00014564,2]
[337744981,1726029038626,-427.66,0.00014578,2]
[337744983,1726029038636,-150.0,0.00014578,2]
[337744985,1726029038646,-357.62,0.00014578,2]
[337744987,1726029038656,-357.62,0.00014578,2]
[337744989,1726029038665,-357.62,0.00014578,2]
[337744991,1726029038675,-357.62,0.00014578,2]
[337744993,1726029038684,-357.62,0.00014578,2]
[337744995,1726029038694,-357.62,0.00014578,2]
[337744997,1726029038704,-357.62,0.00014578,2]
[337744999,1726029038713,-357.62,0.00014578,2]
[337745001,1726029038722,-357.62,0.00014578,2]
[337745003,1726029038732,-492.8,0.00014656,2]
[337745005,1726029038741,-357.25127877,0.000147,2]
[337745007,1726029038751,-201.6792,0.000147,2]
[337745009,1726029038760,-6309.42137716,0.00014722,2]
[337745011,1726029038770,-5337.05765209,0.00014732,2]
[337745013,1726029038779,-137678.94585737,0.00014789,2]
[337745015,1726029038788,-1007.0,0.0001479,3]
[337745017,1726029038798,-1000.0,0.0001479,3]
[337745019,1726029038807,-1000.0,0.0001479,4]
[337745021,1726029038816,-1000.0,0.0001479,3]
[337745023,1726029038825,-1000.0,0.0001479,3]
[337745024,1726029038834,-1001.0,0.0001479,3]
[337745026,1726029038843,-314392.37156284,0.000148,2]
[337745028,1726029038852,-151.36511611,0.00014823,2]
[337745030,1726029038862,-150.0,0.00014832,2]
[337745032,1726029038872,-487.03368496,0.00014843,2]
[337745034,1726029038882,-1518.41756,0.0001486,2]
[337745036,1726029038891,-150.0,0.00014887,2]
[337745038,1726029038901,-222.4573,0.0001489,2]
[337745040,1726029038910,-4187.3518,0.0001489,2]
[337745042,1726029038919,-582.0,0.00014892,2]
[337745044,1726029038928,-4546.94216423,0.000149,2]
[337745046,1726029038938,-177.32746702,0.000149,2]
[337745048,1726029038947,-162.14826699,0.000149,2]
[337745050,1726029038957,-31745.44,0.000149,2]
[337745052,1726029038967,-320.5062,0.000149,2]
[337745054,1726029038976,-463.64,0.000149,31]
[337745056,1726029038985,-463.64,0.000149,31]
[337745058,1726029038994,-463.64,0.000149,31]
[337745060,1726029039003,-463.64,0.000149,31]
[337745062,1726029039012,-463.64,0.000149,31]
[337745063,1726029039022,-463.64,0.000149,31]
[337745065,1726029039031,-463.64,0.000149,31]
[337745067,1726029039040,-463.64,0.000149,31]
[337745069,1726029039049,-463.64,0.000149,31]
[337745071,1726029039058,-463.64,0.000149,31]
[337745073,1726029039067,-463.64,0.000149,31]
[337745075,1726029039077,-463.64,0.000149,31]
[337745077,1726029039086,-463.64,0.000149,31]
[337745079,1726029039097,-463.64,0.000149,31]
[337745081,1726029039107,-463.64,0.000149,31]
[337745083,1726029039116,-463.64,0.000149,31]
[337745085,1726029039125,-5337.05765209,0.000149,2]
[337745087,1726029039134,-339.36122781,0.000149,2]
[337745089,1726029039144,-1518.41757,0.0001494,2]
[337745091,1726029039153,-500.0,0.00014973,2]
[337745093,1726029039163,-405.97540736,0.00014973,2]
[337745095,1726029039172,-1483.8501091,0.0001499,2]
[337745097,1726029039183,-1201.2321821,0.0001499,2]
[337745099,1726029039192,-918.6142551,0.0001499,2]
[337745101,1726029039201,-635.9963281,0.0001499,2]
[337745102,1726029039210,-353.378401,0.0001499,2]
[337745103,1726029039219,-2452.8426028,0.0001499,2]
[337745105,1726029039228,-2836.3150082,0.0001499,2]
[337745107,1726029039237,-3219.7874135,0.0001499,2]
[337745109,1726029039247,-3603.2598189,0.0001499,2]
[337745110,1726029039256,-3986.7322242,0.0001499,2]
[337745112,1726029039265,-170.7314077,0.0001499,2]
[337745114,1726029039274,-170.7314077,0.0001499,2]
[337745116,1726029039284,-170.7314077,0.0001499,2]
[337745118,1726029039293,-170.7314077,0.0001499,2]
[337745120,1726029039302,-170.7314077,0.0001499,2]
[337745122,1726029039311,-13799.8479267,0.0001499,2]
[337745124,1726029039321,-11252.4661702,0.0001499,2]
[337745125,1726029039331,-8705.0844137,0.0001499,2]
[337745127,1726029039342,-6157.7026571,0.0001499,2]
[337745129,1726029039353,-3610.3209006,0.0001499,2]
[337745131,1726029039364,-396.0,0.0001499,2]
[337745133,1726029039373,-1766.4680362,0.00014993,2]
[337745135,1726029039382,-2069.3701975,0.00014993,2]
[337745137,1726029039393,-170.7314077,0.00014993,2]
[337745138,1726029039403,-16347.2296833,0.00014993,2]
[337745140,1726029039414,-1000.0,0.00014999,2]
[337745142,1726029039423,-1000.0,0.00014999,2]
[337745144,1726029039433,-1000.0,0.00014999,2]
[337745145,1726029039442,-1000.0,0.00014999,2]
[337745146,1726029039453,-1000.0,0.00014999,2]
[337745147,1726029039463,-1000.0,0.00014999,2]
[337745148,1726029039473,-1000.0,0.00014999,2]
[337745149,1726029039485,-1000.0,0.00014999,2]
[337745150,1726029039494,-1000.0,0.00014999,2]
[337745151,1726029039503,-12653.26342971,0.00015,2]
[337745152,1726029039513,-515679.8486243,0.00015,2]
[337745156,1726029040176,-9096.64373114,0.00015,2]
[337745157,1726029040188,-8947.21879473,0.00015,2]
[337745158,1726029040199,-8943.78386462,0.00015,2]
[337745159,1726029040210,-9077.54866152,0.00015,2]
[337745160,1726029040222,-8943.84023489,0.00015,2]
[337745175,1726029042979,-1129.74,0.00015,2]
[337745176,1726029043038,-6208.50339362,0.00015,2]
[337745177,1726029043097,-852.5,0.00015,2]
[337745183,1726029044420,-3381210.0,0.00015,2]
[337745184,1726029044431,-233254.47145283,0.00015,2]
[337745187,1726029046151,-357.62,0.00014578,2]
[337745188,1726029046160,-57.38,0.00015,2]
[337745189,1726029046172,-459.62,0.00015,2]
[337745190,1726029046181,-246960.15210443,0.00015,2]
[337745191,1726029046328,-9280.46304583,0.00015,2]
[337745192,1726029046339,-1694.93826055,0.00015,2]
[337745193,1726029046376,-1413.64768,0.00015,2]
[337745209,1726029122153,566.9,0.00028,120]
[337745210,1726029124026,358.04,0.0001198,2]
[337745211,1726029138829,500.0,0.00028,120]
[337745212,1726029139170,195.59768195,0.00028,120]
[337745213,1726029141248,500.0,0.00028,120]
[337745214,1726029141519,500.0,0.00028,120]
[337745215,1726029141981,500.0,0.00028,120]
[337745216,1726029142183,500.0,0.00028,120]
[337745217,1726029142453,500.0,0.00028,120]
[337745218,1726029142725,500.0,0.00028,120]
[337745219,1726029142999,500.0,0.00028,120]
[337745220,1726029143294,152.68068513,0.00028,120]
[337745221,1726029149374,525.77,0.00028,120]
[337745222,1726029149673,525.77,0.00028,120]
[337745223,1726029149987,525.77,0.00028,120]
[337745224,1726029150202,525.77,0.00028,120]
[337745225,1726029150520,525.77,0.00028,120]
[337745226,1726029150781,525.77,0.00028,120]
[337745227,1726029151093,525.77,0.00028,120]
[337745228,1726029151302,500.0,0.00028,120]
[337745229,1726029151394,525.77,0.00028,120]
[337745230,1726029151566,500.0,0.00028,120]
[337745231,1726029151698,525.77,0.00028,120]
[337745232,1726029151860,500.0,0.00028,120]
[337745233,1726029151952,525.77,0.00028,120]
[337745234,1726029152346,525.77,0.00028,120]
[337745235,1726029152472,525.77,0.00028,120]
[337745236,1726029152514,500.0,0.00028,120]
[337745237,1726029152741,500.0,0.00028,120]
[337745238,1726029152782,525.77,0.00028,120]
[337745239,1726029153005,500.0,0.00028,120]
[337745240,1726029153047,525.77,0.00028,120]
[337745241,1726029153294,525.77,0.00028,120]
[337745242,1726029153346,500.0,0.00028,120]
[337745243,1726029153570,525.77,0.00028,120]
[337745244,1726029153657,197.98835714,0.00028,120]
[337745245,1726029153837,525.77,0.00028,120]
[337745246,1726029154117,525.77,0.00028,120]
[337745247,1726029154362,525.77,0.00028,120]
[337745248,1726029154645,525.77,0.00028,120]
[337745249,1726029154899,525.77,0.00028,120]
[337745250,1726029155183,525.77,0.00028,120]
[337745251,1726029155433,525.77,0.00028,120]
[337745252,1726029155675,525.98,0.00028,120]
[337745253,1726029157786,500.0,0.00028,120]
[337745254,1726029158032,500.0,0.00028,120]
[337745255,1726029158300,500.0,0.00028,120]
[337745256,1726029158902,500.0,0.00028,120]
[337745257,1726029159163,500.0,0.00028,120]
[337745258,1726029159591,500.0,0.00028,120]
[337745259,1726029159845,519.9500269,0.00028,120]
[337745260,1726029163223,500.0,0.00028,120]
[337745261,1726029163562,500.0,0.00028,120]
[337745262,1726029163642,500.0,0.00028,120]
[337745263,1726029163835,500.0,0.00028,120]
[337745264,1726029163885,500.0,0.00028,120]
[337745265,1726029164104,432.65065889,0.00028,120]
[337745266,1726029164185,500.0,0.00028,120]
[337745267,1726029164545,500.0,0.00028,120]
[337745268,1726029164831,500.0,0.00028,120]
[337745269,1726029165088,500.0,0.00028,120]
[337745270,1726029165359,500.0,0.00028,120]
[337745271,1726029165619,500.0,0.00028,120]
[337745272,1726029166238,500.0,0.00028,120]
[337745273,1726029166522,535.25947151,0.00028,120]
[337745274,1726029166672,335.85006698,0.00028,120]
[337745279,1726029696901,370.46,0.00011832,2]
[337745282,1726029894898,158.93,0.00010959,2]
[337745283,1726030070380,244.12,0.00028,120]
[337745287,1726030224264,382.59,0.00011837,2]
[337745309,1726030232302,-150.0,0.00013,2]
[337745310,1726030232311,-250.0,0.00013635,2]
[337745311,1726030232321,-295.68,0.00013669,2]
[337745312,1726030232330,-250.0,0.00013685,2]
[337745313,1726030232340,-179.95,0.00013694,2]
[337745314,1726030232349,-300.0,0.00013698,2]
[337745315,1726030232360,-178.81,0.00013699,2]
[337745316,1726030232369,-876.76419989,0.00013699,2]
[337745317,1726030232380,-1874.23580011,0.00013699,2]
[337745318,1726030232389,-186.47,0.00013699,2]
[337745319,1726030232398,-258.64031477,0.000137,2]
[337745320,1726030232410,-2637.74911535,0.000137,2]
[337745321,1726030232422,-1904.47204271,0.000137,2]
[337745322,1726030232431,-236.49,0.00013719,2]
[337745323,1726030232440,-200.0,0.00013719,2]
[337745324,1726030232449,-250.0,0.00013739,2]
[337745325,1726030232459,-4809.21189486,0.00013745,2]
[337745326,1726030232470,-1865.69249295,0.00013745,2]
[337745328,1726030232482,-505.38615579,0.00013745,2]
[337745330,1726030232493,-751.39001507,0.00013745,2]
[337745331,1726030232504,-462.57098659,0.00013745,2]
[337745332,1726030232515,-1474.46617901,0.00013745,2]
[337745333,1726030232525,-1926.93036806,0.00013745,2]
[337745334,1726030232544,-619.14994573,0.00013745,2]
[337745336,1726030232558,-327.85685687,0.00013745,2]
[337745337,1726030232569,-503.88900716,0.00013745,2]
[337745338,1726030232580,-479.81858836,0.00013745,2]
[337745339,1726030232591,-770.6336918,0.00013745,2]
[337745340,1726030232602,-9393.00381775,0.00013745,2]
[337745341,1726030232611,-499.99,0.0001375,2]
[337745342,1726030232620,-704.32,0.00013754,2]
[337745343,1726030232629,-215.95,0.00013766,2]
[337745344,1726030232639,-500.0,0.00013776,2]
[337745345,1726030232647,-627.627,0.00014078,2]
[337745346,1726030232656,-231.635,0.00014078,2]
[337745347,1726030232668,-382.59,0.00014101,2]
[337745348,1726030232684,-178.81,0.00014612,2]
[337745349,1726030232693,-150.0,0.000147,2]
[337745350,1726030232702,-150.0,0.000147,2]
[337745351,1726030232712,-357.62,0.000147,2]
[337745352,1726030232720,-150.0,0.000147,2]
[337745353,1726030232729,-357.62,0.000147,2]
[337745354,1726030232738,-150.0,0.000147,2]
[337745355,1726030232747,-714.28,0.000147,2]
[337745356,1726030232756,-150.0,0.00014726,2]
[337745357,1726030232766,-150.0,0.00014726,2]
[337745358,1726030232775,-150.0,0.00014727,2]
[337745359,1726030232784,-150.0,0.00014728,2]
[337745360,1726030232794,-150.0,0.00014728,2]
[337745361,1726030232802,-150.0,0.00014729,2]
[337745362,1726030232811,-150.0,0.00014735,2]
[337745363,1726030232828,-150.0,0.00014735,2]
[337745364,1726030232840,-150.0,0.00014736,2]
[337745365,1726030232850,-150.0,0.00014736,2]
[337745366,1726030232859,-150.0,0.00014737,2]
[337745367,1726030232868,-150.0,0.00014737,2]
[337745368,1726030232878,-150.0,0.00014741,2]
[337745369,1726030232887,-2500.0,0.00014742,2]
[337745370,1726030232897,-150.0,0.00014744,2]
[337745371,1726030232906,-1500.0,0.00014744,2]
[337745372,1726030232917,-28774.197,0.00014744,2]
[337745373,1726030232926,-150.0,0.00014745,2]
[337745374,1726030232936,-150.0,0.00014746,2]
[337745375,1726030232945,-150.0,0.00014746,2]
[337745376,1726030232955,-1500.0,0.00014748,2]
[337745377,1726030232965,-150.0,0.00014749,2]
[337745378,1726030232974,-150.0,0.00014753,2]
[337745379,1726030232983,-150.0,0.00014756,2]
[337745380,1726030232992,-150.0,0.00014761,2]
[337745381,1726030233002,-150.0,0.00014766,2]
[337745382,1726030233011,-150.0,0.00014767,2]
[337745383,1726030233021,-16938.2788,0.00014767,2]
[337745384,1726030233030,-5844.5716,0.00014767,2]
[337745385,1726030233040,-150.0,0.0001477,2]
[337745386,1726030233050,-150.0,0.0001477,2]
[337745387,1726030233059,-150.0,0.0001477,2]
[337745388,1726030233069,-150.0,0.00014772,2]
[337745389,1726030233080,-150.0,0.00014776,2]
[337745390,1726030233089,-150.0,0.00014778,2]
[337745391,1726030233100,-150.0,0.0001478,2]
[337745392,1726030233110,-150.0,0.00014781,2]
[337745393,1726030233120,-150.0,0.00014784,2]
[337745394,1726030233132,-150.0,0.00014785,2]
[337745395,1726030233142,-150.0,0.00014785,2]
[337745396,1726030233152,-150.0,0.00014788,2]
[337745397,1726030233162,-150.0,0.0001479,2]
[337745398,1726030233176,-1500.0,0.00014793,2]
[337745399,1726030233186,-150.0,0.00014794,2]
[337745400,1726030233196,-150.0,0.00014795,2]
[337745401,1726030233205,-150.0,0.00014795,2]
[337745402,1726030233215,-150.0,0.00014796,2]
[337745403,1726030233224,-226.4799,0.000148,2]
[337745404,1726030233234,-150.0,0.000148,2]
[337745405,1726030233243,-150.0,0.000148,2]
[337745406,1726030233253,-944.79,0.000148,2]
[337745407,1726030233262,-667.97,0.000148,2]
[337745408,1726030233272,-357.62,0.000148,2]
[337745409,1726030233282,-150.0,0.000148,2]
[337745410,1726030233292,-150.0,0.00014802,2]
[337745411,1726030233301,-150.0,0.00014803,2]
[337745412,1726030233311,-150.0,0.00014803,2]
[337745413,1726030233321,-1500.0,0.00014805,2]
[337745414,1726030233330,-150.0,0.00014809,2]
[337745415,1726030233340,-150.0,0.0001481,2]
[337745416,1726030233349,-150.0,0.00014811,2]
[337745417,1726030233359,-150.0,0.00014811,2]
[337745418,1726030233369,-150.0,0.00014825,2]
[337745419,1726030233379,-150.0,0.00014825,2]
[337745420,1726030233389,-150.0,0.00014828,2]
[337745421,1726030233398,-150.0,0.0001484,2]
[337745422,1726030233407,-150.0,0.00014842,2]
[337745423,1726030233420,-150.0,0.00014842,2]
[337745424,1726030233430,-150.0,0.00014844,2]
[337745425,1726030233439,-150.0,0.00014845,2]
[337745426,1726030233448,-150.0,0.0001485,2]
[337745427,1726030233458,-150.0,0.00014855,2]
[337745428,1726030233467,-150.0,0.00014856,2]
[337745429,1726030233477,-150.0,0.00014857,2]
[337745430,1726030233487,-1500.0,0.0001486,2]
[337745431,1726030233496,-150.0,0.00014862,2]
[337745432,1726030233506,-1500.0,0.00014863,2]
[337745433,1726030233515,-150.0,0.00014863,2]
[337745434,1726030233525,-1500.0,0.00014867,2]
[337745435,1726030233534,-150.0,0.0001487,2]
[337745436,1726030233543,-150.0,0.00014872,2]
[337745437,1726030233554,-500.0,0.00014873,2]
[337745438,1726030233563,-150.0,0.00014876,2]
[337745439,1726030233572,-150.0,0.00014883,2]
[337745440,1726030233582,-150.0,0.00014884,2]
[337745441,1726030233592,-153.63575951,0.00014888,2]
[337745442,1726030233601,-150.0,0.0001489,2]
[337745443,1726030233610,-1500.0,0.0001489,2]
[337745444,1726030233620,-150.0,0.00014893,2]
[337745445,1726030233629,-150.0,0.00014897,2]
[337745446,1726030233639,-210.905,0.00014897,2]
[337745447,1726030233648,-30706.8011,0.000149,2]
[337745448,1726030233657,-352.0367,0.000149,2]
[337745449,1726030233669,-1251.23165334,0.000149,2]
[337745450,1726030233678,-324.29653398,0.000149,2]
[337745451,1726030233687,-237.85037377,0.000149,2]
[337745452,1726030233697,-150.0,0.000149,2]
[337745453,1726030233706,-150.0,0.000149,2]
[337745454,1726030233716,-150.0,0.000149,2]
[337745455,1726030233725,-320.5062,0.000149,2]
[337745456,1726030233734,-389.5,0.000149,31]
[337745457,1726030233743,-389.5,0.000149,31]
[337745458,1726030233753,-389.5,0.000149,31]
[337745459,1726030233762,-389.5,0.000149,31]
[337745460,1726030233771,-389.5,0.000149,31]
[337745461,1726030233780,-389.5,0.000149,31]
[337745462,1726030233790,-389.5,0.000149,31]
[337745463,1726030233799,-389.5,0.000149,31]
[337745464,1726030233809,-389.5,0.000149,31]
[337745465,1726030233818,-389.5,0.000149,31]
[337745466,1726030233828,-389.5,0.000149,31]
[337745467,1726030233839,-389.5,0.000149,31]
[337745468,1726030233848,-389.5,0.000149,31]
[337745469,1726030233858,-389.5,0.000149,31]
[337745470,1726030233867,-389.5,0.000149,31]
[337745471,1726030233877,-389.5,0.000149,31]
[337745472,1726030233886,-5641.15729014,0.000149,2]
[337745473,1726030233895,-1455.90422123,0.000149,2]
[337745474,1726030233904,-595.87128402,0.000149,2]
[337745475,1726030233916,-150.0,0.00014901,2]
[337745476,1726030233925,-150.0,0.00014907,2]
[337745477,1726030233935,-150.0,0.00014907,2]
[337745478,1726030233944,-150.0,0.00014907,2]
[337745479,1726030233954,-1500.0,0.00014909,2]
[337745480,1726030233963,-150.0,0.0001491,2]
[337745481,1726030233972,-1500.0,0.00014911,2]
[337745482,1726030233982,-150.0,0.00014913,2]
[337745483,1726030233992,-150.0,0.00014916,2]
[337745484,1726030234001,-150.0,0.00014922,2]
[337745485,1726030234010,-150.0,0.00014924,2]
[337745486,1726030234020,-1589.15194205,0.00014925,2]
[337745487,1726030234029,-500.0,0.00014925,2]
[337745488,1726030234039,-500.0,0.00014925,2]
[337745489,1726030234048,-500.0,0.00014925,2]
[337745490,1726030234058,-500.0,0.00014925,2]
[337745491,1726030234067,-500.0,0.00014925,2]
[337745492,1726030234081,-389.6446,0.00014925,2]
[337745493,1726030234091,-500.0,0.00014925,2]
[337745494,1726030234100,-500.0,0.00014925,2]
[337745495,1726030234110,-500.0,0.00014925,2]
[337745496,1726030234120,-500.0,0.00014925,2]
[337745497,1726030234131,-500.0,0.00014925,2]
[337745498,1726030234141,-500.0,0.00014925,2]
[337745499,1726030234151,-500.0,0.00014925,2]
[337745500,1726030234160,-500.0,0.00014925,2]
[337745501,1726030234172,-514.1829,0.00014925,2]
[337745502,1726030234182,-150.0,0.00014927,2]
[337745503,1726030234192,-150.0,0.0001493,2]
[337745504,1726030234202,-150.0,0.0001493,2]
[337745505,1726030234213,-1500.0,0.00014933,2]
[337745506,1726030234223,-150.0,0.00014935,2]
[337745507,1726030234233,-150.0,0.00014936,2]
[337745508,1726030234243,-150.0,0.00014938,2]
[337745509,1726030234252,-150.0,0.00014941,2]
[337745510,1726030234262,-150.0,0.00014942,2]
[337745511,1726030234272,-150.0,0.00014943,2]
[337745512,1726030234282,-150.0,0.00014945,2]
[337745513,1726030234293,-150.0,0.00014948,2]
[337745514,1726030234302,-150.0,0.00014951,2]
[337745515,1726030234312,-150.0,0.00014952,2]
[337745516,1726030234322,-150.0,0.00014953,2]
[337745517,1726030234332,-47549.73102488,0.00014955,2]
[337745518,1726030234342,-150.0,0.00014955,2]
[337745519,1726030234352,-150.0,0.00014955,2]
[337745520,1726030234362,-531.0,0.00014959,2]
[337745521,1726030234372,-502.99554528,0.00014959,2]
[337745522,1726030234382,-172.53233676,0.00014959,2]
[337745523,1726030234392,-150.0,0.00014961,2]
[337745524,1726030234401,-150.0,0.00014967,2]
[337745525,1726030234411,-150.0,0.00014968,2]
[337745526,1726030234424,-188.13298413,0.00014969,2]
[337745527,1726030234435,-150.0,0.0001497,2]
[337745528,1726030234445,-500.0,0.00014973,2]
[337745529,1726030234455,-150.0,0.00014974,2]
[337745530,1726030234466,-288.41055394,0.00014983,2]
[337745531,1726030234477,-150.0,0.00014984,2]
[337745532,1726030234487,-150.0,0.00014987,2]
[337745533,1726030234498,-150.0,0.00014988,2]
[337745534,1726030234508,-150.0,0.00014989,2]
[337745535,1726030234519,-3073.0741636,0.0001499,2]
[337745536,1726030234529,-3417.0471476,0.0001499,2]
[337745537,1726030234539,-3761.0201316,0.0001499,2]
[337745538,1726030234549,-4104.9931156,0.0001499,2]
[337745539,1726030234559,-4448.9660997,0.0001499,2]
[337745540,1726030234569,-150.72,0.0001499,2]
[337745541,1726030234578,-150.72,0.0001499,2]
[337745542,1726030234587,-150.72,0.0001499,2]
[337745543,1726030234597,-150.72,0.0001499,2]
[337745544,1726030234607,-150.72,0.0001499,2]
[337745545,1726030234617,-150.72,0.0001499,2]
[337745546,1726030234626,-150.72,0.0001499,2]
[337745547,1726030234637,-150.72,0.0001499,2]
[337745548,1726030234646,-150.72,0.0001499,2]
[337745549,1726030234656,-150.72,0.0001499,2]
[337745550,1726030234665,-150.72,0.0001499,2]
[337745551,1726030234675,-150.72,0.0001499,2]
[337745552,1726030234684,-150.72,0.0001499,2]
[337745553,1726030234693,-150.72,0.0001499,2]
[337745554,1726030234703,-150.72,0.0001499,2]
[337745555,1726030234713,-150.72,0.0001499,2]
[337745556,1726030234722,-150.72,0.0001499,2]
[337745557,1726030234731,-150.72,0.0001499,2]
[337745558,1726030234740,-150.72,0.0001499,2]
[337745559,1726030234749,-150.72,0.0001499,2]
[337745560,1726030234759,-150.72,0.0001499,2]
[337745561,1726030234768,-150.72,0.0001499,2]
[337745562,1726030234779,-150.72,0.0001499,2]
[337745563,1726030234788,-150.72,0.0001499,2]
[337745564,1726030234797,-150.72,0.0001499,2]
[337745565,1726030234808,-150.72,0.0001499,2]
[337745566,1726030234818,-150.72,0.0001499,2]
[337745567,1726030234827,-150.72,0.0001499,2]
[337745568,1726030234839,-150.72,0.0001499,2]